[Event "Turniej 30-lecia Liceum im. Józefa Bema"]
[Site "Warsaw, Poland"]
[Date "????.??.??"]
[Round "4.8"]
[White "Szewczak, Anna"]
[Black "Janeczko, Jakub"]
[Result "1/2-1/2"]
[TimeControl "0:10:02"]
[WhiteElo "2005"]
[BlackElo "1661"]

1. e4 {[%clk 00:10:03]} {[%emt 00:00:01]} c5 {[%clk 00:10:03]} 2. Nf3 {[%clk
00:10:03]} {[%emt 00:00:02]} Nc6 {[%clk 00:10:03]} {[%emt 00:00:02]} 3. d4
{[%clk 00:10:03]} {[%emt 00:00:01]} cxd4 {[%clk 00:10:04]} {[%emt 00:00:02]} 4.
Nxd4 {[%clk 00:10:04]} g6 {[%clk 00:10:05]} 5. Be3 {[%clk 00:09:20]} {[%emt
00:00:46]} Bg7 {[%clk 00:10:04]} {[%emt 00:00:02]} 6. Nc3 {[%clk 00:09:05]}
{[%emt 00:00:18]} Nf6 {[%clk 00:09:55]} {[%emt 00:00:11]} 7. Bc4 {[%clk
00:08:56]} {[%emt 00:00:11]} O-O {[%clk 00:09:49]} {[%emt 00:00:08]} 8. O-O
{[%clk 00:08:57]} {[%emt 00:00:02]} e6 {[%clk 00:09:18]} {[%emt 00:00:33]} 9.
Bb3 {[%clk 00:08:04]} {[%emt 00:00:55]} a6 {[%clk 00:08:43]} {[%emt 00:00:37]}
10. a4 {[%clk 00:07:57]} {[%emt 00:00:09]} d5 {[%clk 00:08:17]} {[%emt
00:00:28]} 11. exd5 {[%emt 00:00:23]} exd5 {[%clk 00:07:57]} {[%emt 00:00:18]}
12. Qd2 {[%clk 00:07:03]} {[%emt 00:00:40]} Na5 {[%clk 00:06:38]} {[%emt
00:01:20]} 13. Rad1 {[%clk 00:05:22]} {[%emt 00:01:42]} Nxb3 {[%clk 00:06:31]}
{[%emt 00:00:09]} 14. Nxb3 {[%clk 00:05:23]} {[%emt 00:00:01]} Bf5 {[%clk
00:05:42]} {[%emt 00:00:50]} 15. Nd4 {[%clk 00:04:59]} {[%emt 00:00:27]} Bd7
{[%clk 00:05:34]} {[%emt 00:00:10]} 16. Bg5 {[%clk 00:04:43]} {[%emt 00:00:17]}
Qa5 {[%clk 00:05:26]} {[%emt 00:00:10]} 17. Nf3 {[%clk 00:03:54]} {[%emt
00:00:52]} Bc6 {[%clk 00:03:41]} {[%emt 00:01:48]} 18. b3 {[%clk 00:03:44]}
{[%emt 00:00:12]} Rad8 {[%clk 00:03:18]} {[%emt 00:00:25]} 19. Ne2 {[%clk
00:03:40]} {[%emt 00:00:05]} Qxd2 {[%clk 00:03:17]} {[%emt 00:00:04]} 20. Rxd2
{[%clk 00:03:38]} {[%emt 00:00:03]} Ne4 {[%clk 00:03:05]} {[%emt 00:00:14]} 21.
Rd3 {[%clk 00:03:31]} {[%emt 00:00:09]} Nxg5 {[%clk 00:02:24]} {[%emt
00:00:44]} 22. Nxg5 {[%clk 00:03:31]} b5 {[%clk 00:01:59]} {[%emt 00:00:26]} 23.
Nd4 {[%clk 00:02:47]} {[%emt 00:00:46]} Bxd4 {[%clk 00:01:34]} {[%emt
00:00:27]} 24. Rxd4 {[%clk 00:02:49]} bxa4 {[%clk 00:01:35]} {[%emt 00:00:01]}
25. bxa4 {[%clk 00:02:49]} {[%emt 00:00:02]} Rb8 {[%clk 00:01:31]} {[%emt
00:00:06]} 26. h3 {[%clk 00:02:27]} {[%emt 00:00:24]} Rb2 {[%clk 00:01:32]}
{[%emt 00:00:01]} 27. c3 {[%clk 00:02:16]} {[%emt 00:00:13]} Ra2 {[%clk
00:01:25]} {[%emt 00:00:09]} 28. Rfd1 {[%clk 00:02:12]} {[%emt 00:00:06]} Rd8
{[%clk 00:01:25]} {[%emt 00:00:01]} 29. c4 {[%clk 00:02:07]} {[%emt 00:00:08]}
Rxa4 {[%clk 00:01:23]} {[%emt 00:00:04]} 30. cxd5 {[%clk 00:02:07]} {[%emt
00:00:02]} Rxd4 {[%clk 00:01:23]} {[%emt 00:00:01]} 31. Rxd4 {[%clk 00:02:08]}
{[%emt 00:00:02]} Rxd5 {[%clk 00:01:23]} {[%emt 00:00:02]} 32. Rc4 {[%clk
00:01:52]} {[%emt 00:00:18]} Rd1+ {[%clk 00:00:56]} {[%emt 00:00:29]} 33. Kh2
{[%clk 00:01:53]} Bd5 {[%clk 00:00:57]} {[%emt 00:00:02]} 34. Ra4 {[%clk
00:01:31]} {[%emt 00:00:23]} Bb7 {[%clk 00:00:49]} {[%emt 00:00:11]} 35. Nf3
{[%clk 00:01:18]} {[%emt 00:00:14]} Bxf3 {[%clk 00:00:45]} {[%emt 00:00:06]} 36.
gxf3 {[%clk 00:01:20]} Rd6 {[%clk 00:00:45]} {[%emt 00:00:02]} 37. Kg3 {[%clk
00:01:20]} {[%emt 00:00:02]} Kg7 {[%clk 00:00:43]} {[%emt 00:00:04]} 38. h4
{[%clk 00:01:18]} {[%emt 00:00:04]} h5 {[%clk 00:00:44]} {[%emt 00:00:01]} 39.
Ra5 {[%clk 00:01:15]} {[%emt 00:00:05]} Kf6 {[%clk 00:00:44]} {[%emt 00:00:02]}
40. Kf4 {[%clk 00:01:10]} {[%emt 00:00:06]} Rb6 {[%clk 00:00:41]} {[%emt
00:00:07]} 41. Kg3 {[%clk 00:01:03]} {[%emt 00:00:09]} Ke6 {[%clk 00:00:41]}
{[%emt 00:00:02]} 42. Kf4 {[%clk 00:01:00]} {[%emt 00:00:05]} f6 {[%clk
00:00:41]} {[%emt 00:00:02]} 43. Ke4 {[%clk 00:00:54]} {[%emt 00:00:07]} Kd6
{[%clk 00:00:37]} {[%emt 00:00:07]} 44. f4 {[%clk 00:00:54]} {[%emt 00:00:02]}
Kc6 {[%clk 00:00:28]} {[%emt 00:00:11]} 45. f5 {[%clk 00:00:46]} {[%emt
00:00:10]} Rb4+ {[%clk 00:00:29]} 46. Kf3 {[%clk 00:00:46]} Kb6 {[%clk
00:00:28]} {[%emt 00:00:05]} 47. Rd5 {[%clk 00:00:35]} {[%emt 00:00:11]} Kc6
{[%clk 00:00:21]} {[%emt 00:00:10]} 48. Ra5 {[%clk 00:00:35]} {[%emt 00:00:02]}
Kb6 {[%clk 00:00:23]} 49. Rd5 {[%clk 00:00:36]} Kc6 {[%clk 00:00:11]} {[%emt
00:00:14]} 50. Ra5 {[%clk 00:00:37]} Kb6 {[%clk 00:00:12]} {[%emt 00:00:01]}
1/2-1/2

[Event "Turniej 30-lecia Liceum im. Józefa Bema"]
[Site "Warsaw, Poland"]
[Date "????.??.??"]
[Round "4.9"]
[White "Gronkowski, Dariusz"]
[Black "Krasiewicz, Robert"]
[Result "0-1"]
[TimeControl "0:10:02"]
[WhiteElo "1645"]
[BlackElo "1948"]

1. c4 {[%clk 00:10:01]} {[%emt 00:00:03]} c5 {[%clk 00:09:56]} {[%emt
00:00:08]} 2. Nc3 {[%clk 00:10:00]} {[%emt 00:00:02]} Nf6 {[%clk 00:09:55]}
{[%emt 00:00:04]} 3. g3 {[%clk 00:09:59]} {[%emt 00:00:03]} g6 {[%clk
00:09:55]} {[%emt 00:00:02]} 4. Bg2 {[%clk 00:09:57]} {[%emt 00:00:03]} Bg7
{[%clk 00:09:55]} {[%emt 00:00:02]} 5. e4 {[%clk 00:09:55]} {[%emt 00:00:04]}
Nc6 {[%clk 00:09:52]} {[%emt 00:00:06]} 6. Nf3 {[%clk 00:09:40]} {[%emt
00:00:15]} O-O {[%clk 00:09:49]} {[%emt 00:00:05]} 7. O-O {[%clk 00:09:25]}
{[%emt 00:00:17]} d6 {[%clk 00:09:31]} {[%emt 00:00:21]} 8. h3 {[%clk
00:09:24]} {[%emt 00:00:03]} Ne8 {[%clk 00:09:19]} {[%emt 00:00:14]} 9. Re1
{[%clk 00:09:21]} {[%emt 00:00:05]} Nc7 {[%clk 00:09:19]} {[%emt 00:00:03]} 10.
b3 {[%clk 00:09:15]} {[%emt 00:00:07]} Ne6 {[%clk 00:09:17]} {[%emt 00:00:04]}
11. Bb2 {[%clk 00:09:11]} {[%emt 00:00:05]} Ned4 {[%clk 00:09:14]} {[%emt
00:00:05]} 12. Kh2 {[%clk 00:08:44]} {[%emt 00:00:28]} a6 {[%clk 00:09:08]}
{[%emt 00:00:10]} 13. Rb1 {[%clk 00:08:36]} {[%emt 00:00:09]} b5 {[%clk
00:09:04]} {[%emt 00:00:07]} 14. d3 {[%clk 00:08:10]} {[%emt 00:00:27]} b4
{[%clk 00:08:47]} {[%emt 00:00:20]} 15. Nd5 {[%clk 00:08:07]} {[%emt 00:00:04]}
e6 {[%clk 00:08:16]} {[%emt 00:00:34]} 16. Ne3 {[%clk 00:08:06]} {[%emt
00:00:03]} a5 {[%clk 00:08:08]} {[%emt 00:00:11]} 17. Nc2 {[%clk 00:08:04]}
{[%emt 00:00:03]} Nxf3+ {[%clk 00:06:06]} {[%emt 00:02:04]} 18. Bxf3 {[%clk
00:07:39]} {[%emt 00:00:27]} a4 {[%clk 00:05:27]} {[%emt 00:00:42]} 19. Bxg7
{[%clk 00:07:17]} {[%emt 00:00:24]} Kxg7 {[%clk 00:05:28]} {[%emt 00:00:02]} 20.
bxa4 {[%clk 00:06:50]} {[%emt 00:00:28]} Rxa4 {[%clk 00:05:10]} {[%emt
00:00:20]} 21. Rb2 {[%clk 00:06:42]} {[%emt 00:00:08]} Qa5 {[%clk 00:05:00]}
{[%emt 00:00:13]} 22. Qa1 {[%clk 00:06:38]} {[%emt 00:00:06]} Ne5 {[%clk
00:04:52]} {[%emt 00:00:11]} 23. Be2 {[%clk 00:06:30]} {[%emt 00:00:09]} Kg8
{[%clk 00:04:36]} {[%emt 00:00:19]} 24. f4 {[%clk 00:06:29]} {[%emt 00:00:03]}
Nc6 {[%clk 00:04:37]} {[%emt 00:00:01]} 25. Rf1 {[%clk 00:05:36]} {[%emt
00:00:54]} Bd7 {[%clk 00:04:34]} {[%emt 00:00:06]} 26. f5 {[%clk 00:05:30]}
{[%emt 00:00:08]} exf5 {[%clk 00:04:34]} {[%emt 00:00:02]} 27. exf5 {[%clk
00:05:30]} {[%emt 00:00:01]} Bxf5 {[%clk 00:04:35]} {[%emt 00:00:02]} 28. Rxf5
{[%clk 00:05:24]} {[%emt 00:00:08]} gxf5 {[%clk 00:04:36]} {[%emt 00:00:01]} 29.
Qc1 {[%clk 00:05:22]} {[%emt 00:00:03]} Ne5 {[%clk 00:04:08]} {[%emt 00:00:30]}
30. Qg5+ {[%clk 00:05:12]} {[%emt 00:00:12]} Ng6 {[%clk 00:04:09]} {[%emt
00:00:02]} 31. Ne3 {[%clk 00:04:36]} {[%emt 00:00:38]} Rxa2 {[%clk 00:03:02]}
{[%emt 00:01:09]} 32. Nxf5 {[%clk 00:04:29]} {[%emt 00:00:09]} f6 {[%clk
00:02:32]} {[%emt 00:00:32]} 33. Nh6+ {[%clk 00:03:25]} {[%emt 00:01:05]} Kh8
{[%clk 00:02:08]} {[%emt 00:00:25]} 34. Qd2 {[%clk 00:03:07]} {[%emt 00:00:21]}
Rxb2 {[%clk 00:01:59]} {[%emt 00:00:11]} 35. Qxb2 {[%clk 00:03:08]} {[%emt
00:00:01]} Qa3 {[%clk 00:01:56]} {[%emt 00:00:05]} 36. Qd2 {[%clk 00:03:01]}
{[%emt 00:00:08]} b3 {[%clk 00:01:56]} {[%emt 00:00:03]} 37. Nf5 {[%clk
00:02:38]} {[%emt 00:00:24]} Qa2 {[%clk 00:01:51]} {[%emt 00:00:06]} 38. Qe3
{[%clk 00:02:17]} {[%emt 00:00:23]} b2 {[%clk 00:01:36]} {[%emt 00:00:18]} 39.
Qh6 {[%clk 00:02:14]} {[%emt 00:00:04]} Qa7 {[%clk 00:01:18]} {[%emt 00:00:18]}
40. Bh5 {[%clk 00:02:12]} {[%emt 00:00:06]} b1=Q {[%clk 00:01:13]} {[%emt
00:00:08]} 41. h4 {[%clk 00:01:56]} {[%emt 00:00:18]} Qaa2+ {[%clk 00:01:10]}
{[%emt 00:00:04]} 42. Kh3 {[%clk 00:01:45]} {[%emt 00:00:14]} Qh1+ {[%clk
00:01:08]} {[%emt 00:00:03]} 43. Kg4 {[%clk 00:01:32]} {[%emt 00:00:15]} Qe2#
{[%emt 00:00:10]} 0-1

[Event "Turniej 30-lecia Liceum im. Józefa Bema"]
[Site "Warsaw, Poland"]
[Date "????.??.??"]
[Round "4.10"]
[White "Grzenkowicz, Lukasz"]
[Black "Niedbal, Piotr"]
[Result "0-1"]
[TimeControl "0:10:02"]
[WhiteElo "1546"]
[BlackElo "1856"]

1. d4 {[%clk 00:10:02]} {[%emt 00:00:02]} Nf6 {[%clk 00:10:03]} 2. c4 {[%clk
00:10:03]} {[%emt 00:00:01]} g6 {[%clk 00:10:04]} 3. Nc3 {[%clk 00:10:04]} Bg7
{[%clk 00:10:06]} 4. e4 {[%clk 00:10:05]} {[%emt 00:00:01]} O-O {[%clk
00:10:06]} {[%emt 00:00:01]} 5. Nf3 {[%clk 00:10:01]} {[%emt 00:00:06]} d6
{[%clk 00:10:07]} 6. Bd3 {[%clk 00:10:01]} {[%emt 00:00:03]} e5 {[%clk
00:10:05]} {[%emt 00:00:04]} 7. d5 {[%clk 00:09:53]} {[%emt 00:00:10]} Nbd7
{[%clk 00:10:02]} {[%emt 00:00:05]} 8. Be3 {[%clk 00:09:53]} {[%emt 00:00:02]}
a5 {[%clk 00:10:01]} {[%emt 00:00:03]} 9. O-O {[%clk 00:09:39]} {[%emt
00:00:16]} b6 {[%clk 00:10:03]} {[%emt 00:00:01]} 10. a3 {[%clk 00:09:21]}
{[%emt 00:00:20]} Nc5 {[%clk 00:10:00]} {[%emt 00:00:05]} 11. Bxc5 {[%clk
00:08:30]} {[%emt 00:00:52]} bxc5 {[%clk 00:10:01]} {[%emt 00:00:02]} 12. a4
{[%clk 00:08:21]} {[%emt 00:00:11]} Nh5 {[%clk 00:09:56]} {[%emt 00:00:06]} 13.
Ne2 {[%clk 00:08:04]} {[%emt 00:00:19]} f5 {[%clk 00:09:35]} {[%emt 00:00:23]}
14. exf5 {[%clk 00:07:17]} {[%emt 00:00:50]} gxf5 {[%clk 00:09:36]} {[%emt
00:00:02]} 15. Bc2 {[%clk 00:07:05]} {[%emt 00:00:13]} e4 {[%clk 00:09:27]}
{[%emt 00:00:10]} 16. Ne1 {[%clk 00:06:58]} {[%emt 00:00:10]} Bxb2 {[%clk
00:09:07]} {[%emt 00:00:22]} 17. Ra2 {[%clk 00:05:56]} {[%emt 00:01:04]} Bg7
{[%clk 00:09:00]} {[%emt 00:00:09]} 18. Ng3 {[%clk 00:05:21]} {[%emt 00:00:37]}
Nf4 {[%clk 00:08:29]} {[%emt 00:00:33]} 19. Ne2 {[%clk 00:04:38]} {[%emt
00:00:45]} Ng6 {[%clk 00:08:12]} {[%emt 00:00:19]} 20. f3 {[%clk 00:04:29]}
{[%emt 00:00:10]} Ba6 {[%clk 00:07:45]} {[%emt 00:00:29]} 21. Bb3 {[%clk
00:03:57]} {[%emt 00:00:35]} Ne5 {[%clk 00:07:32]} {[%emt 00:00:15]} 22. fxe4
{[%clk 00:03:13]} {[%emt 00:00:47]} fxe4 {[%clk 00:07:31]} {[%emt 00:00:02]} 23.
Rxf8+ {[%clk 00:03:02]} {[%emt 00:00:13]} Qxf8 {[%clk 00:07:32]} {[%emt
00:00:01]} 24. Qc2 {[%clk 00:02:51]} {[%emt 00:00:13]} e3 {[%clk 00:06:19]}
{[%emt 00:01:15]} 25. Ng3 {[%clk 00:01:52]} {[%emt 00:01:01]} Rb8 {[%clk
00:05:55]} {[%emt 00:00:25]} 26. Nd3 {[%clk 00:01:25]} {[%emt 00:00:29]} Rxb3
{[%clk 00:05:16]} {[%emt 00:00:42]} 27. Nxe5 {[%clk 00:01:03]} {[%emt
00:00:24]} Qf2+ {[%clk 00:05:12]} {[%emt 00:00:05]} 28. Qxf2 {[%clk 00:00:24]}
{[%emt 00:00:41]} exf2+ {[%clk 00:05:13]} {[%emt 00:00:01]} 29. Kxf2 {[%clk
00:00:20]} {[%emt 00:00:06]} Bxe5 {[%emt 00:00:21]} 0-1

[Event "Turniej 30-lecia Liceum im. Józefa Bema"]
[Site "Warsaw, Poland"]
[Date "????.??.??"]
[Round "5.1"]
[White "Maciaga, Marcin"]
[Black "Owczarzak, Jerzy"]
[Result "0-1"]
[TimeControl "0:10:02"]
[WhiteElo "2159"]
[BlackElo "2264"]

1. g3 {[%clk 00:10:01]} {[%emt 00:01:43]} d5 {[%clk 00:10:02]} {[%emt
00:00:05]} 2. c4 {[%clk 00:10:00]} {[%emt 00:00:03]} Nf6 {[%clk 00:09:58]}
{[%emt 00:00:06]} 3. cxd5 {[%clk 00:09:59]} {[%emt 00:00:02]} Nxd5 {[%clk
00:09:59]} {[%emt 00:00:02]} 4. Bg2 {[%clk 00:09:58]} {[%emt 00:00:03]} g6
{[%clk 00:09:36]} {[%emt 00:00:26]} 5. Qa4+ {[%clk 00:09:37]} {[%emt 00:00:22]}
c6 {[%clk 00:09:35]} {[%emt 00:00:03]} 6. Qd4 {[%clk 00:09:32]} {[%emt
00:00:08]} f6 {[%clk 00:07:51]} {[%emt 00:01:46]} 7. Nf3 {[%clk 00:09:25]}
{[%emt 00:00:08]} Bg7 {[%clk 00:07:44]} {[%emt 00:00:10]} 8. h4 {[%clk
00:07:58]} {[%emt 00:01:28]} e5 {[%clk 00:06:42]} {[%emt 00:01:05]} 9. Qa4
{[%clk 00:07:41]} {[%emt 00:00:20]} Nb6 {[%clk 00:05:54]} {[%emt 00:00:51]} 10.
Qc2 {[%clk 00:07:23]} {[%emt 00:00:18]} Bf5 {[%clk 00:05:28]} {[%emt 00:00:28]}
11. e4 {[%clk 00:07:08]} {[%emt 00:00:17]} Be6 {[%clk 00:05:07]} {[%emt
00:00:23]} 12. h5 {[%clk 00:06:59]} {[%emt 00:00:10]} Na6 {[%clk 00:04:29]}
{[%emt 00:00:40]} 13. a3 {[%clk 00:06:51]} {[%emt 00:00:11]} Qd6 {[%clk
00:03:45]} {[%emt 00:00:45]} 14. b4 {[%clk 00:06:05]} {[%emt 00:00:49]} Rd8
{[%clk 00:03:13]} {[%emt 00:00:35]} 15. Nc3 {[%clk 00:05:28]} {[%emt 00:00:38]}
Bc4 {[%clk 00:02:59]} {[%emt 00:00:16]} 16. hxg6 {[%clk 00:05:12]} {[%emt
00:00:17]} hxg6 {[%clk 00:02:58]} {[%emt 00:00:03]} 17. Rxh8+ {[%clk 00:05:12]}
{[%emt 00:00:02]} Bxh8 {[%clk 00:03:00]} {[%emt 00:00:01]} 18. Nh4 {[%clk
00:05:13]} {[%emt 00:00:01]} Kf7 {[%clk 00:02:37]} {[%emt 00:00:26]} 19. Bb2
{[%clk 00:04:58]} {[%emt 00:00:17]} Bg7 {[%clk 00:02:26]} {[%emt 00:00:13]} 20.
Ne2 {[%clk 00:04:33]} {[%emt 00:00:26]} Bh6 {[%clk 00:02:08]} {[%emt 00:00:21]}
21. d4 {[%clk 00:03:33]} {[%emt 00:01:02]} exd4 {[%clk 00:01:24]} {[%emt
00:00:46]} 22. e5 {[%clk 00:03:30]} {[%emt 00:00:05]} fxe5 {[%clk 00:01:14]}
{[%emt 00:00:13]} 23. Be4 {[%clk 00:02:47]} {[%emt 00:00:44]} d3 {[%clk
00:00:50]} {[%emt 00:00:26]} 24. Qc3 {[%clk 00:02:28]} {[%emt 00:00:21]} dxe2
{[%clk 00:00:44]} {[%emt 00:00:08]} 25. f4 {[%clk 00:01:23]} {[%emt 00:01:06]}
Qd1+ {[%clk 00:00:31]} {[%emt 00:00:15]} 26. Kf2 {[%clk 00:01:20]} {[%emt
00:00:05]} Qf1+ {[%clk 00:00:30]} {[%emt 00:00:04]} 27. Ke3 {[%clk 00:01:10]}
{[%emt 00:00:12]} Bxf4+ {[%clk 00:00:20]} {[%emt 00:00:12]} 28. gxf4 {[%clk
00:01:08]} {[%emt 00:00:04]} exf4# {[%clk 00:00:17]} {[%emt 00:00:05]} 0-1

[Event "Turniej 30-lecia Liceum im. Józefa Bema"]
[Site "Warsaw, Poland"]
[Date "????.??.??"]
[Round "5.2"]
[White "Babik, Tomasz"]
[Black "Nurkiewicz, Maciej"]
[Result "1/2-1/2"]
[TimeControl "0:10:02"]
[WhiteElo "2187"]
[BlackElo "2301"]

1. c4 {[%clk 00:09:59]} {[%emt 00:00:04]} e5 {[%clk 00:09:57]} {[%emt
00:00:07]} 2. Nc3 {[%clk 00:09:59]} {[%emt 00:00:02]} Nc6 {[%clk 00:09:58]}
{[%emt 00:00:01]} 3. g3 {[%clk 00:10:00]} {[%emt 00:00:01]} g6 {[%clk
00:09:57]} {[%emt 00:00:03]} 4. Bg2 {[%clk 00:10:01]} Bg7 {[%clk 00:09:58]}
{[%emt 00:00:01]} 5. d3 {[%clk 00:10:02]} f5 {[%clk 00:09:57]} {[%emt
00:00:03]} 6. e4 {[%clk 00:09:50]} {[%emt 00:00:14]} Nf6 {[%clk 00:09:43]}
{[%emt 00:00:16]} 7. Nge2 {[%clk 00:09:50]} {[%emt 00:00:01]} O-O {[%clk
00:09:41]} {[%emt 00:00:04]} 8. O-O {[%clk 00:09:50]} {[%emt 00:00:02]} d6
{[%clk 00:09:40]} {[%emt 00:00:03]} 9. h3 {[%clk 00:09:49]} {[%emt 00:00:03]}
Be6 {[%clk 00:09:35]} {[%emt 00:00:07]} 10. Nd5 {[%clk 00:09:40]} {[%emt
00:00:11]} Qd7 {[%clk 00:08:39]} {[%emt 00:00:58]} 11. Kh2 {[%clk 00:09:31]}
{[%emt 00:00:11]} Rae8 {[%clk 00:08:37]} {[%emt 00:00:03]} 12. Be3 {[%clk
00:09:21]} {[%emt 00:00:12]} Nd8 {[%clk 00:05:58]} {[%emt 00:02:42]} 13. Qd2
{[%clk 00:09:13]} {[%emt 00:00:10]} c5 {[%clk 00:05:47]} {[%emt 00:00:13]} 14.
Rae1 {[%clk 00:07:18]} {[%emt 00:01:56]} Nc6 {[%clk 00:05:46]} {[%emt
00:00:03]} 15. exf5 {[%clk 00:06:41]} {[%emt 00:00:40]} Bxf5 {[%clk 00:05:06]}
{[%emt 00:00:42]} 16. Nec3 {[%clk 00:06:18]} {[%emt 00:00:25]} Nd4 {[%clk
00:04:30]} {[%emt 00:00:38]} 17. Nxf6+ {[%clk 00:06:07]} {[%emt 00:00:12]} Bxf6
{[%clk 00:04:23]} {[%emt 00:00:09]} 18. Bxd4 {[%clk 00:05:17]} {[%emt
00:00:52]} cxd4 {[%clk 00:04:09]} {[%emt 00:00:16]} 19. Ne4 {[%clk 00:05:13]}
{[%emt 00:00:07]} b6 {[%clk 00:02:43]} {[%emt 00:01:29]} 20. f4 {[%clk
00:05:03]} {[%emt 00:00:12]} Bxe4 {[%clk 00:02:04]} {[%emt 00:00:41]} 21. Bxe4
{[%clk 00:04:39]} {[%emt 00:00:26]} exf4 {[%clk 00:02:03]} {[%emt 00:00:03]} 22.
Rxf4 {[%clk 00:04:02]} {[%emt 00:00:38]} Be5 {[%clk 00:02:02]} {[%emt
00:00:04]} 23. Rxf8+ {[%clk 00:03:55]} {[%emt 00:00:09]} Rxf8 {[%clk 00:02:03]}
{[%emt 00:00:01]} 24. Qg2 {[%clk 00:03:27]} {[%emt 00:00:29]} Qe7 {[%clk
00:01:45]} {[%emt 00:00:20]} 25. Rf1 {[%clk 00:03:08]} {[%emt 00:00:22]} Bxg3+
{[%clk 00:01:16]} {[%emt 00:00:31]} 26. Kxg3 {[%clk 00:01:05]} {[%emt
00:02:04]} Qe5+ {[%clk 00:01:16]} {[%emt 00:00:01]} 27. Kh4 {[%clk 00:01:07]}
Qh5+ {[%clk 00:00:09]} {[%emt 00:01:10]} 28. Kg3 {[%clk 00:01:08]} Qe5+ {[%clk
00:00:09]} {[%emt 00:00:03]} 29. Kh4 {[%clk 00:01:09]} Qh5+ {[%clk 00:00:05]}
{[%emt 00:00:06]} 1/2-1/2